[Event "*** Titled Tuesday 3|2 Blitz"]
[Site "Chess.com"]
[Date "2015.09.01"]
[Round "6"]
[White "Dale"]
[Black "Colombiano07"]
[Result "0-1"]
[WhiteElo "1927"]
[BlackElo "1976"]
[TimeControl "180+2"]
[EndTime "12:10:42 PDT"]
[Termination "Colombiano07 won by checkmate"]

1. d4 {[%clk 0:03:01.9]} 1... Nf6 {[%clk 0:02:59.8]} 2. c4 {[%clk 0:03:02]} 2...
g6 {[%clk 0:02:59.3]} 3. Nc3 {[%clk 0:03:01.9]} 3... Bg7 {[%clk 0:03:01.2]} 4.
e4 {[%clk 0:03:01.8]} 4... O-O {[%clk 0:03:03.1]} 5. Nf3 {[%clk 0:03:00.2]} 5...
d6 {[%clk 0:03:04.3]} 6. Be2 {[%clk 0:02:59]} 6... e5 {[%clk 0:03:04.9]} 7. O-O
{[%clk 0:02:59.6]} 7... Nc6 {[%clk 0:03:05.8]} 8. d5 {[%clk 0:02:59.8]} 8... Ne7
{[%clk 0:03:07.5]} 9. b4 {[%clk 0:02:58.7]} 9... a5 {[%clk 0:03:06.4]} 10. bxa5
{[%clk 0:02:58.2]} 10... Rxa5 {[%clk 0:03:06.6]} 11. a4 {[%clk 0:02:59.2]} 11...
Nd7 {[%clk 0:03:04.9]} 12. Nd2 {[%clk 0:02:57.1]} 12... f5 {[%clk 0:03:05.5]}
13. Nb3 {[%clk 0:02:57]} 13... Ra8 {[%clk 0:03:05.3]} 14. c5 {[%clk 0:02:49.6]}
14... Nf6 {[%clk 0:03:04.5]} 15. cxd6 {[%clk 0:02:45.7]} 15... cxd6 {[%clk
0:03:05.2]} 16. Nb5 {[%clk 0:02:41.3]} 16... Nxe4 {[%clk 0:03:04.8]} 17. a5
{[%clk 0:02:29.3]} 17... Bd7 {[%clk 0:03:03.9]} 18. Ba3 {[%clk 0:02:21]} 18...
Bxb5 {[%clk 0:03:02.8]} 19. Bxb5 {[%clk 0:02:20.8]} 19... Nc3 {[%clk 0:03:03.8]}
20. Qd3 {[%clk 0:02:17.1]} 20... e4 {[%clk 0:03:03.9]} 21. Qc4 {[%clk 0:02:18]}
21... Nxb5 {[%clk 0:03:04.2]} 22. Qxb5 {[%clk 0:02:18.8]} 22... Bxa1 {[%clk
0:03:05.1]} 23. Rxa1 {[%clk 0:02:18.6]} 23... Rf7 {[%clk 0:03:00.1]} 24. Qxb7
{[%clk 0:02:15.8]} 24... f4 {[%clk 0:03:00.4]} 25. a6 {[%clk 0:02:12.9]} 25...
Rb8 {[%clk 0:03:00.8]} 26. Qa7 {[%clk 0:02:11.4]} 26... Rxb3 {[%clk 0:03:01]}
27. Qd4 {[%clk 0:02:04.3]} 27... e3 {[%clk 0:02:57.5]} 28. a7 {[%clk 0:02:00.8]}
28... exf2+ {[%clk 0:02:54.5]} 29. Kxf2 {[%clk 0:02:00.1]} 29... Nf5 {[%clk
0:02:49.9]} 30. Qe4 {[%clk 0:01:51.2]} 30... Rxa7 {[%clk 0:02:49.7]} 31. g4
{[%clk 0:01:47.4]} 31... fxg3+ {[%clk 0:02:49.5]} 32. hxg3 {[%clk 0:01:46.7]}
32... Raxa3 {[%clk 0:02:50.4]} 33. Rxa3 {[%clk 0:01:46.5]} 33... Rxa3 {[%clk
0:02:18.3]} 34. Kg2 {[%clk 0:01:45.8]} 34... Qe7 {[%clk 0:02:17.2]} 35. Qe6+
{[%clk 0:01:42]} 35... Qxe6 {[%clk 0:02:18.1]} 36. dxe6 {[%clk 0:01:42.9]} 36...
Re3 {[%clk 0:02:19]} 37. g4 {[%clk 0:01:43.6]} 37... Rxe6 {[%clk 0:02:19.7]} 38.
g5 {[%clk 0:01:44.2]} 38... d5 {[%clk 0:02:19.6]} 39. Kf3 {[%clk 0:01:45.3]}
39... d4 {[%clk 0:02:21.3]} 40. Kg4 {[%clk 0:01:46.4]} 40... d3 {[%clk 0:02:11]}
41. Kh3 {[%clk 0:01:46.9]} 41... d2 {[%clk 0:02:12.9]} 42. Kg4 {[%clk
0:01:46.9]} 42... d1=Q+ {[%clk 0:02:14.2]} 43. Kf4 {[%clk 0:01:47.7]} 43... Qd4+
{[%clk 0:02:13.6]} 44. Kf3 {[%clk 0:01:48.2]} 44... Re3+ {[%clk 0:02:15.5]} 45.
Kg2 {[%clk 0:01:48.2]} 45... Qd2+ {[%clk 0:02:17.4]} 46. Kh1 {[%clk 0:01:48.7]}
46... Re1# {[%clk 0:02:19.3]} 0-1

[Event "*** Titled Tuesday 3|2 Blitz"]
[Site "Chess.com"]
[Date "2015.09.01"]
[Round "6"]
[White "Moltini"]
[Black "Tesla17"]
[Result "0-1"]
[WhiteElo "2107"]
[BlackElo "2129"]
[TimeControl "180+2"]
[EndTime "12:11:12 PDT"]
[Termination "Tesla17 won by checkmate"]

1. d4 {[%clk 0:02:54.6]} 1... c5 {[%clk 0:03:01.1]} 2. d5 {[%clk 0:02:55.3]}
2... e6 {[%clk 0:03:02.6]} 3. c4 {[%clk 0:02:56.6]} 3... exd5 {[%clk 0:03:03.9]}
4. cxd5 {[%clk 0:02:58]} 4... d6 {[%clk 0:03:05.8]} 5. Nc3 {[%clk 0:02:59.6]}
5... Be7 {[%clk 0:03:07.5]} 6. e4 {[%clk 0:03:01.1]} 6... Bf6 {[%clk 0:03:09.1]}
7. f4 {[%clk 0:03:01.7]} 7... Ne7 {[%clk 0:03:10.4]} 8. Nf3 {[%clk 0:03:03]}
8... Ng6 {[%clk 0:03:12]} 9. Be2 {[%clk 0:03:02.3]} 9... O-O {[%clk 0:03:13.5]}
10. O-O {[%clk 0:03:03.4]} 10... Na6 {[%clk 0:03:15.1]} 11. a4 {[%clk
0:03:01.7]} 11... Nc7 {[%clk 0:03:16.1]} 12. Re1 {[%clk 0:03:01.4]} 12... Re8
{[%clk 0:03:16.9]} 13. Bf1 {[%clk 0:03:01]} 13... a6 {[%clk 0:03:18.1]} 14. a5
{[%clk 0:03:01.4]} 14... Bd7 {[%clk 0:03:19.1]} 15. Qd3 {[%clk 0:02:56.3]} 15...
Nb5 {[%clk 0:03:18.9]} 16. Ne2 {[%clk 0:02:30.1]} 16... Rc8 {[%clk 0:03:11.6]}
17. Ng3 {[%clk 0:02:23.4]} 17... c4 {[%clk 0:03:02.5]} 18. Qc2 {[%clk 0:02:21]}
18... c3 {[%clk 0:03:01.4]} 19. b3 {[%clk 0:02:18.6]} 19... Nh4 {[%clk
0:02:53.9]} 20. Be3 {[%clk 0:02:10.7]} 20... Nxf3+ {[%clk 0:02:48]} 21. gxf3
{[%clk 0:02:10.5]} 21... Nd4 {[%clk 0:02:48.4]} 22. Bxd4 {[%clk 0:01:59]} 22...
Bxd4+ {[%clk 0:02:50.3]} 23. Kh1 {[%clk 0:01:59.6]} 23... Qh4 {[%clk 0:02:51.4]}
24. f5 {[%clk 0:01:57.6]} 24... Be5 {[%clk 0:02:47.7]} 25. Qg2 {[%clk
0:01:53.9]} 25... c2 {[%clk 0:02:44]} 26. Rac1 {[%clk 0:01:52.6]} 26... Rc3
{[%clk 0:02:45.6]} 27. Bc4 {[%clk 0:01:50]} 27... Rc8 {[%clk 0:02:44.5]} 28. Re2
{[%clk 0:01:50.2]} 28... Qf4 {[%clk 0:02:39.7]} 29. Rcxc2 {[%clk 0:01:48.3]}
29... Rxf3 {[%clk 0:02:40.8]} 30. Rf2 {[%clk 0:01:44.7]} 30... Rxf2 {[%clk
0:02:35.3]} 31. Rxf2 {[%clk 0:01:39.3]} 31... Qh4 {[%clk 0:02:36.6]} 32. Rc2
{[%clk 0:01:35.5]} 32... g6 {[%clk 0:02:36.2]} 33. fxg6 {[%clk 0:01:33.8]} 33...
hxg6 {[%clk 0:02:36.4]} 34. Rf2 {[%clk 0:01:30.6]} 34... Bd4 {[%clk 0:02:27]}
35. Rf1 {[%clk 0:01:30.1]} 35... Bh3 {[%clk 0:02:26.7]} 36. Qe2 {[%clk
0:01:22.7]} 36... Bxf1 {[%clk 0:02:26.7]} 37. Qxf1 {[%clk 0:01:24.1]} 37... Be5
{[%clk 0:02:27.7]} 38. Kg2 {[%clk 0:01:21]} 38... Bxg3 {[%clk 0:02:26.6]} 39.
hxg3 {[%clk 0:01:22.4]} 39... Qxe4+ {[%clk 0:02:27.7]} 40. Kh2 {[%clk
0:01:23.7]} 40... Kg7 {[%clk 0:02:27.1]} 41. Qa1+ {[%clk 0:01:24.3]} 41... f6
{[%clk 0:02:27.6]} 42. Qa4 {[%clk 0:01:11.1]} 42... Rh8+ {[%clk 0:02:27.6]} 43.
Kg1 {[%clk 0:01:12.3]} 43... Rh1+ {[%clk 0:02:28.1]} 44. Kf2 {[%clk 0:01:13.7]}
44... Rh2+ {[%clk 0:02:29.6]} 45. Kf1 {[%clk 0:01:14.3]} 45... Qg2+ {[%clk
0:02:31.2]} 46. Ke1 {[%clk 0:01:15.6]} 46... Qd2+ {[%clk 0:02:32.8]} 47. Kf1
{[%clk 0:01:16.2]} 47... Qf2# {[%clk 0:02:34.7]} 0-1

[Event "*** Titled Tuesday 3|2 Blitz"]
[Site "Chess.com"]
[Date "2015.09.01"]
[Round "6"]
[White "xdb"]
[Black "Tobi-Wan-Kenobi"]
[Result "1-0"]
[WhiteElo "2193"]
[BlackElo "2345"]
[TimeControl "180+2"]
[EndTime "12:11:13 PDT"]
[Termination "xdb won by resignation"]

1. d4 {[%clk 0:03:01]} 1... Nf6 {[%clk 0:02:59.9]} 2. c4 {[%clk 0:03:01.6]} 2...
e6 {[%clk 0:03:00.7]} 3. Nc3 {[%clk 0:03:02.3]} 3... Bb4 {[%clk 0:03:01]} 4. a3
{[%clk 0:03:03.6]} 4... Bxc3+ {[%clk 0:03:00.7]} 5. bxc3 {[%clk 0:03:05.5]} 5...
c5 {[%clk 0:03:02.1]} 6. e3 {[%clk 0:03:05.7]} 6... Nc6 {[%clk 0:03:01.6]} 7.
Bd3 {[%clk 0:03:05.6]} 7... O-O {[%clk 0:03:02.3]} 8. Ne2 {[%clk 0:03:06]} 8...
b6 {[%clk 0:03:02.9]} 9. O-O {[%clk 0:03:04.6]} 9... Ba6 {[%clk 0:03:02]} 10. e4
{[%clk 0:03:04.9]} 10... Ne8 {[%clk 0:03:01.8]} 11. f4 {[%clk 0:03:01.3]} 11...
f5 {[%clk 0:03:01.7]} 12. e5 {[%clk 0:02:58]} 12... Na5 {[%clk 0:02:57.4]} 13.
d5 {[%clk 0:02:58.7]} 13... Nc7 {[%clk 0:02:39.8]} 14. d6 {[%clk 0:02:56]} 14...
Ne8 {[%clk 0:02:39.6]} 15. g4 {[%clk 0:02:21.7]} 15... Bxc4 {[%clk 0:02:32.3]}
16. gxf5 {[%clk 0:02:18.4]} 16... Bxd3 {[%clk 0:02:30.3]} 17. Qxd3 {[%clk
0:02:20.3]} 17... Rxf5 {[%clk 0:02:30.5]} 18. Ng3 {[%clk 0:02:20.9]} 18... Rf8
{[%clk 0:02:26.6]} 19. f5 {[%clk 0:02:17.7]} 19... Nc6 {[%clk 0:02:16.6]} 20.
Bf4 {[%clk 0:01:48.6]} 20... exf5 {[%clk 0:02:05.6]} 21. Nxf5 {[%clk 0:01:44.3]}
21... g6 {[%clk 0:02:02]} 22. Qd5+ {[%clk 0:01:35]} 22... Kh8 {[%clk 0:02:02.3]}
23. Ne7 {[%clk 0:01:10]} 23... Rb8 {[%clk 0:01:44.1]} 24. Bg5 {[%clk 0:00:44]}
24... Rxf1+ {[%clk 0:01:23.3]} 25. Rxf1 {[%clk 0:00:45.9]} 1-0

[Event "*** Titled Tuesday 3|2 Blitz"]
[Site "Chess.com"]
[Date "2015.09.01"]
[Round "6"]
[White "BakaPG"]
[Black "LADIESGET2KNOWME"]
[Result "1-0"]
[WhiteElo "2440"]
[BlackElo "2240"]
[TimeControl "180+2"]
[EndTime "12:11:33 PDT"]
[Termination "BakaPG won by resignation"]

1. e4 {[%clk 0:03:01.9]} 1... e6 {[%clk 0:03:01]} 2. d3 {[%clk 0:03:01.3]} 2...
d5 {[%clk 0:03:02.5]} 3. Nd2 {[%clk 0:03:01]} 3... Nf6 {[%clk 0:03:03.9]} 4.
Ngf3 {[%clk 0:03:01.3]} 4... Bc5 {[%clk 0:03:05.5]} 5. e5 {[%clk 0:02:58]} 5...
Nfd7 {[%clk 0:03:06.4]} 6. d4 {[%clk 0:02:58.8]} 6... Be7 {[%clk 0:03:07.6]} 7.
c3 {[%clk 0:02:59]} 7... c5 {[%clk 0:03:09.1]} 8. Bd3 {[%clk 0:02:52.4]} 8...
Nc6 {[%clk 0:03:10.5]} 9. O-O {[%clk 0:02:51.3]} 9... Qb6 {[%clk 0:03:11.6]} 10.
Qa4 {[%clk 0:02:42.8]} 10... O-O {[%clk 0:03:10.2]} 11. Re1 {[%clk 0:02:40.5]}
11... cxd4 {[%clk 0:03:00.1]} 12. cxd4 {[%clk 0:02:35.5]} 12... Nb4 {[%clk
0:03:00.3]} 13. Bb1 {[%clk 0:02:30.8]} 13... Qc6 {[%clk 0:02:58.2]} 14. Qd1
{[%clk 0:02:26.4]} 14... Nb6 {[%clk 0:02:53.2]} 15. a3 {[%clk 0:02:20.4]} 15...
Na6 {[%clk 0:02:54.1]} 16. Nf1 {[%clk 0:02:20.8]} 16... Bd7 {[%clk 0:02:54.1]}
17. Qd3 {[%clk 0:02:15.7]} 17... g6 {[%clk 0:02:53.8]} 18. Qe3 {[%clk
0:02:10.4]} 18... Rfc8 {[%clk 0:02:52.2]} 19. Qh6 {[%clk 0:02:05.8]} 19... Bf8
{[%clk 0:02:53.4]} 20. Qh4 {[%clk 0:02:05.8]} 20... Qxc1 {[%clk 0:02:30]} 21.
Rxc1 {[%clk 0:02:03.9]} 21... Rxc1 {[%clk 0:02:31.9]} 22. Bxg6 {[%clk
0:01:50.1]} 22... Rxf1+ {[%clk 0:02:32]} 23. Rxf1 {[%clk 0:01:48.6]} 23... hxg6
{[%clk 0:02:23.8]} 24. Ng5 {[%clk 0:01:44.7]} 24... Bg7 {[%clk 0:02:24.6]} 25.
Nh7 {[%clk 0:01:45]} 25... Rc8 {[%clk 0:02:12.6]} 26. Nf6+ {[%clk 0:01:44.6]}
26... Kf8 {[%clk 0:02:14]} 27. Qh7 {[%clk 0:01:45.3]} 27... Bb5 {[%clk
0:01:58.2]} 28. Re1 {[%clk 0:01:41]} 1-0

[Event "*** Titled Tuesday 3|2 Blitz"]
[Site "Chess.com"]
[Date "2015.09.01"]
[Round "6"]
[White "Thomaslegend"]
[Black "PauloCesarCosta"]
[Result "1/2-1/2"]
[WhiteElo "2130"]
[BlackElo "2024"]
[TimeControl "180+2"]
[EndTime "12:11:36 PDT"]
[Termination "Game drawn by agreement"]

1. d4 {[%clk 0:03:01]} 1... d5 {[%clk 0:02:51.7]} 2. c4 {[%clk 0:03:01.6]} 2...
c6 {[%clk 0:02:52.8]} 3. Nf3 {[%clk 0:03:02.4]} 3... e6 {[%clk 0:02:53.8]} 4. g3
{[%clk 0:02:58.7]} 4... Nf6 {[%clk 0:02:50.9]} 5. Bg2 {[%clk 0:02:59.8]} 5...
Be7 {[%clk 0:02:52.1]} 6. O-O {[%clk 0:03:01.3]} 6... b6 {[%clk 0:02:52.7]} 7.
cxd5 {[%clk 0:02:59.7]} 7... exd5 {[%clk 0:02:49.7]} 8. Nc3 {[%clk 0:02:57.9]}
8... O-O {[%clk 0:02:48.4]} 9. Bf4 {[%clk 0:02:55.1]} 9... Bb7 {[%clk
0:02:41.9]} 10. Rc1 {[%clk 0:02:50]} 10... Nbd7 {[%clk 0:02:41.1]} 11. Ne5
{[%clk 0:02:41.5]} 11... Nxe5 {[%clk 0:02:38.7]} 12. Bxe5 {[%clk 0:02:41.7]}
12... Nd7 {[%clk 0:02:33.8]} 13. Bf4 {[%clk 0:02:40.1]} 13... Bg5 {[%clk
0:02:32.5]} 14. Qd2 {[%clk 0:02:36.6]} 14... Bxf4 {[%clk 0:02:30.8]} 15. Qxf4
{[%clk 0:02:38.5]} 15... Rc8 {[%clk 0:02:24.9]} 16. Rfd1 {[%clk 0:02:33.4]}
16... Qf6 {[%clk 0:02:19.3]} 17. e3 {[%clk 0:02:08.5]} 17... Qxf4 {[%clk
0:02:18.1]} 18. gxf4 {[%clk 0:02:07.8]} 18... Rfe8 {[%clk 0:02:12.9]} 19. Bh3
{[%clk 0:02:08.1]} 19... Rcd8 {[%clk 0:02:09.9]} 20. Bxd7 {[%clk 0:01:58.3]}
20... Rxd7 {[%clk 0:02:10.3]} 21. Nb1 {[%clk 0:01:47.1]} 21... f6 {[%clk
0:02:00.8]} 22. b4 {[%clk 0:01:42.3]} 22... Rd6 {[%clk 0:01:57.5]} 23. Rc3
{[%clk 0:01:40.6]} 23... Ba6 {[%clk 0:01:56.7]} 24. Nd2 {[%clk 0:01:38.4]} 24...
Rc8 {[%clk 0:01:36.4]} 25. Rdc1 {[%clk 0:01:37.8]} 25... Be2 {[%clk 0:01:21.9]}
26. a4 {[%clk 0:01:27.2]} 26... a6 {[%clk 0:01:22]} 27. Rb3 {[%clk 0:01:16.2]}
27... b5 {[%clk 0:01:15.7]} 28. axb5 {[%clk 0:01:14.8]} 28... axb5 {[%clk
0:01:16.8]} 29. Rbc3 {[%clk 0:01:15.9]} 29... Bc4 {[%clk 0:01:17]} 1/2-1/2

[Event "*** Titled Tuesday 3|2 Blitz"]
[Site "Chess.com"]
[Date "2015.09.01"]
[Round "6"]
[White "DanielNaroditsky"]
[Black "Mornar1951"]
[Result "1-0"]
[WhiteElo "2554"]
[BlackElo "2486"]
[TimeControl "180+2"]
[EndTime "12:11:43 PDT"]
[Termination "DanielNaroditsky won by resignation"]

1. d4 {[%clk 0:03:01.9]} 1... Nf6 {[%clk 0:02:59.2]} 2. c4 {[%clk 0:03:02.5]}
2... e6 {[%clk 0:03:00.5]} 3. Nc3 {[%clk 0:03:03.6]} 3... Bb4 {[%clk 0:03:00.3]}
4. f3 {[%clk 0:03:05]} 4... c5 {[%clk 0:03:00.2]} 5. d5 {[%clk 0:03:04.3]} 5...
O-O {[%clk 0:02:59.7]} 6. e4 {[%clk 0:03:05.1]} 6... d6 {[%clk 0:03:01.1]} 7.
Ne2 {[%clk 0:03:06.1]} 7... a6 {[%clk 0:02:59.3]} 8. Ng3 {[%clk 0:03:02.9]} 8...
Re8 {[%clk 0:02:57]} 9. Be2 {[%clk 0:03:01.9]} 9... b5 {[%clk 0:02:56.4]} 10.
O-O {[%clk 0:02:59.1]} 10... bxc4 {[%clk 0:02:48.3]} 11. Bxc4 {[%clk 0:02:59.8]}
11... Bxc3 {[%clk 0:02:20.8]} 12. bxc3 {[%clk 0:03:00.7]} 12... exd5 {[%clk
0:02:22.1]} 13. Bxd5 {[%clk 0:03:01.6]} 13... Nxd5 {[%clk 0:02:22.6]} 14. Qxd5
{[%clk 0:03:03.3]} 14... Ra7 {[%clk 0:02:07.1]} 15. Bf4 {[%clk 0:03:03.5]} 15...
Rd7 {[%clk 0:01:45.7]} 16. Rab1 {[%clk 0:03:03.1]} 16... Qc7 {[%clk 0:01:45.9]}
17. Nf5 {[%clk 0:03:03.7]} 17... Re6 {[%clk 0:01:30.6]} 18. Rfd1 {[%clk
0:02:11.2]} 18... Bb7 {[%clk 0:01:11.7]} 19. Qb3 {[%clk 0:01:59.1]} 19... Nc6
{[%clk 0:00:58.7]} 20. Nxd6 {[%clk 0:01:36.9]} 20... Na5 {[%clk 0:00:56]} 21.
Nxb7 {[%clk 0:01:19.6]} 21... Nxb3 {[%clk 0:00:18.3]} 22. Bxc7 {[%clk
0:01:18.9]} 22... Nd2 {[%clk 0:00:19.6]} 23. Bf4 {[%clk 0:01:13.9]} 23... g5
{[%clk 0:00:17.3]} 24. Rxd2 {[%clk 0:01:13.2]} 1-0

[Event "*** Titled Tuesday 3|2 Blitz"]
[Site "Chess.com"]
[Date "2015.09.01"]
[Round "6"]
[White "Kempsy"]
[Black "amazingoid"]
[Result "1-0"]
[WhiteElo "2506"]
[BlackElo "2303"]
[TimeControl "180+2"]
[EndTime "12:11:55 PDT"]
[Termination "Kempsy won by resignation"]

1. c4 {[%clk 0:02:59]} 1... e5 {[%clk 0:02:59.1]} 2. Nc3 {[%clk 0:02:58.9]} 2...
Nc6 {[%clk 0:03:00.3]} 3. g3 {[%clk 0:02:59.6]} 3... Bc5 {[%clk 0:03:01.2]} 4.
Bg2 {[%clk 0:03:00.5]} 4... d6 {[%clk 0:03:02.4]} 5. e3 {[%clk 0:03:01.8]} 5...
Nf6 {[%clk 0:03:03.4]} 6. Nge2 {[%clk 0:03:03]} 6... O-O {[%clk 0:03:03.4]} 7.
O-O {[%clk 0:03:02.5]} 7... a6 {[%clk 0:03:03.8]} 8. a3 {[%clk 0:02:59.6]} 8...
Bg4 {[%clk 0:02:59.1]} 9. b4 {[%clk 0:02:53.6]} 9... Ba7 {[%clk 0:03:00.1]} 10.
h3 {[%clk 0:02:54.4]} 10... Bh5 {[%clk 0:03:00.9]} 11. Bb2 {[%clk 0:02:54.6]}
11... Re8 {[%clk 0:02:51.9]} 12. d3 {[%clk 0:02:48.2]} 12... Qc8 {[%clk
0:02:31.2]} 13. Qd2 {[%clk 0:02:42.9]} 13... Ne7 {[%clk 0:02:28.8]} 14. d4
{[%clk 0:02:29.7]} 14... Rb8 {[%clk 0:02:04.3]} 15. c5 {[%clk 0:02:21.7]} 15...
Bg6 {[%clk 0:02:02]} 16. cxd6 {[%clk 0:02:13.6]} 16... cxd6 {[%clk 0:02:02.7]}
17. Rac1 {[%clk 0:02:15.2]} 17... Qe6 {[%clk 0:02:01.8]} 18. Rfd1 {[%clk
0:01:59.9]} 18... Rec8 {[%clk 0:02:02.3]} 19. Kh2 {[%clk 0:01:39.8]} 19... Qb3
{[%clk 0:01:56.2]} 20. dxe5 {[%clk 0:00:51]} 20... dxe5 {[%clk 0:01:55.1]} 21.
f4 {[%clk 0:00:43.4]} 21... Nf5 {[%clk 0:01:35.9]} 22. Nd5 {[%clk 0:00:20.2]}
22... Bxe3 {[%clk 0:01:12.6]} 23. Rxc8+ {[%clk 0:00:17.7]} 23... Rxc8 {[%clk
0:01:13.1]} 24. Nxe3 {[%clk 0:00:19]} 24... Qxd1 {[%clk 0:01:00.9]} 25. Nxd1
{[%clk 0:00:18.4]} 25... Ne3 {[%clk 0:01:02.5]} 26. Nxe3 {[%clk 0:00:19.5]} 1-0

[Event "*** Titled Tuesday 3|2 Blitz"]
[Site "Chess.com"]
[Date "2015.09.01"]
[Round "6"]
[White "Aygehovit1992"]
[Black "alexsuper1987"]
[Result "1-0"]
[WhiteElo "2335"]
[BlackElo "2138"]
[TimeControl "180+2"]
[EndTime "12:12:03 PDT"]
[Termination "Aygehovit1992 won by resignation"]

1. Nf3 {[%clk 0:02:57.5]} 1... Nc6 {[%clk 0:02:58.6]} 2. e3 {[%clk 0:02:58.2]}
2... d5 {[%clk 0:02:58.7]} 3. d4 {[%clk 0:02:59.2]} 3... Bg4 {[%clk 0:02:59.4]}
4. c4 {[%clk 0:02:59.9]} 4... e5 {[%clk 0:02:59.7]} 5. dxe5 {[%clk 0:02:59.6]}
5... dxc4 {[%clk 0:02:51.7]} 6. Qxd8+ {[%clk 0:02:59]} 6... Rxd8 {[%clk
0:02:51.9]} 7. Bxc4 {[%clk 0:03:00.1]} 7... Bxf3 {[%clk 0:02:47.9]} 8. gxf3
{[%clk 0:03:00.9]} 8... Nxe5 {[%clk 0:02:46.6]} 9. Be2 {[%clk 0:03:01.5]} 9...
Nf6 {[%clk 0:02:38.2]} 10. f4 {[%clk 0:03:01.3]} 10... Nd3+ {[%clk 0:02:33.9]}
11. Bxd3 {[%clk 0:03:02]} 11... Rxd3 {[%clk 0:02:35.8]} 12. Ke2 {[%clk
0:03:03.3]} 12... Rd7 {[%clk 0:02:35.6]} 13. Nc3 {[%clk 0:03:04.3]} 13... c6
{[%clk 0:02:31.7]} 14. Bd2 {[%clk 0:03:04.8]} 14... Be7 {[%clk 0:02:20.8]} 15.
Rab1 {[%clk 0:03:04.3]} 15... O-O {[%clk 0:02:20.9]} 16. b4 {[%clk 0:03:05.4]}
16... Rfd8 {[%clk 0:02:19.7]} 17. Rhd1 {[%clk 0:03:06.1]} 17... b6 {[%clk
0:02:15.3]} 18. a4 {[%clk 0:03:06.8]} 18... c5 {[%clk 0:02:13.4]} 19. bxc5
{[%clk 0:03:07.5]} 19... Bxc5 {[%clk 0:02:14.2]} 20. Be1 {[%clk 0:03:05.9]}
20... Rxd1 {[%clk 0:02:11.6]} 21. Rxd1 {[%clk 0:03:07]} 21... Rxd1 {[%clk
0:02:12.7]} 22. Nxd1 {[%clk 0:03:08.2]} 22... Nd5 {[%clk 0:02:07.8]} 23. Kd3
{[%clk 0:03:08.2]} 23... Kf8 {[%clk 0:02:01.5]} 24. Kc4 {[%clk 0:03:09.3]} 24...
Nc7 {[%clk 0:02:01.4]} 25. Nc3 {[%clk 0:03:10.5]} 25... Ke7 {[%clk 0:02:00.7]}
26. Nb5 {[%clk 0:03:09]} 26... Nxb5 {[%clk 0:01:54.7]} 27. axb5 {[%clk
0:03:10.3]} 27... Ke6 {[%clk 0:01:51.1]} 28. Bd2 {[%clk 0:03:03.1]} 28... Kf5
{[%clk 0:01:51.1]} 29. f3 {[%clk 0:03:04]} 29... Ke6 {[%clk 0:01:41.5]} 30. e4
{[%clk 0:03:05.1]} 30... f5 {[%clk 0:01:40.6]} 31. Bc3 {[%clk 0:03:03.8]} 31...
g6 {[%clk 0:01:39.6]} 32. Bd4 {[%clk 0:03:05.1]} 32... Bd6 {[%clk 0:01:31.7]}
33. Be3 {[%clk 0:03:03]} 33... Bc7 {[%clk 0:01:24.4]} 34. Kd3 {[%clk 0:02:56.1]}
34... g5 {[%clk 0:01:04.3]} 35. fxg5 {[%clk 0:02:55.2]} 35... Bxh2 {[%clk
0:01:05.3]} 36. f4 {[%clk 0:02:55.2]} 36... Bg3 {[%clk 0:00:59]} 37. e5 {[%clk
0:02:47.9]} 37... Kd5 {[%clk 0:00:56.3]} 38. Ke2 {[%clk 0:02:48.1]} 38... Bh4
{[%clk 0:00:36.1]} 39. Bf2 {[%clk 0:02:47.3]} 39... Bxf2 {[%clk 0:00:20.2]} 40.
Kxf2 {[%clk 0:02:48.7]} 40... Ke6 {[%clk 0:00:21.1]} 41. Kg3 {[%clk 0:02:49.8]}
41... Kf7 {[%clk 0:00:18]} 42. Kh4 {[%clk 0:02:50.3]} 42... Kg6 {[%clk
0:00:19.2]} 43. e6 {[%clk 0:02:51.5]} 43... Kg7 {[%clk 0:00:13.1]} 44. Kh5
{[%clk 0:02:51.7]} 44... Kf8 {[%clk 0:00:14.1]} 45. Kh6 {[%clk 0:02:53]} 45...
Ke7 {[%clk 0:00:15.3]} 46. Kxh7 {[%clk 0:02:52.1]} 46... a5 {[%clk 0:00:13.5]}
47. bxa6 {[%clk 0:02:52.3]} 47... b5 {[%clk 0:00:14.7]} 48. a7 {[%clk
0:02:53.1]} 48... b4 {[%clk 0:00:16.6]} 49. a8=Q {[%clk 0:02:54.5]} 49... b3
{[%clk 0:00:18.5]} 50. Qd5 {[%clk 0:02:55.6]} 50... b2 {[%clk 0:00:20.4]} 51.
Qd7+ {[%clk 0:02:57.1]} 1-0

[Event "*** Titled Tuesday 3|2 Blitz"]
[Site "Chess.com"]
[Date "2015.09.01"]
[Round "6"]
[White "FairChess_on_YouTube"]
[Black "AlexanderL"]
[Result "1-0"]
[WhiteElo "2718"]
[BlackElo "2506"]
[TimeControl "180+2"]
[EndTime "12:12:37 PDT"]
[Termination "FairChess_on_YouTube won by resignation"]

1. d4 {[%clk 0:03:01.9]} 1... e6 {[%clk 0:03:01.9]} 2. Nf3 {[%clk 0:03:02.1]}
2... d5 {[%clk 0:02:58.9]} 3. Bf4 {[%clk 0:02:59.7]} 3... c5 {[%clk 0:02:59.6]}
4. e3 {[%clk 0:03:00.8]} 4... Nc6 {[%clk 0:02:58.9]} 5. c3 {[%clk 0:03:02]} 5...
Bd6 {[%clk 0:02:59.7]} 6. Bg3 {[%clk 0:03:02.7]} 6... Nf6 {[%clk 0:02:57.8]} 7.
Nbd2 {[%clk 0:03:02.3]} 7... O-O {[%clk 0:02:57.2]} 8. Bd3 {[%clk 0:03:03.3]}
8... b6 {[%clk 0:02:54.4]} 9. Ne5 {[%clk 0:03:02.5]} 9... Bxe5 {[%clk
0:02:50.4]} 10. dxe5 {[%clk 0:03:03]} 10... Nd7 {[%clk 0:02:51.4]} 11. f4 {[%clk
0:03:03.2]} 11... f6 {[%clk 0:02:52.6]} 12. Bh4 {[%clk 0:02:55.9]} 12... Qe8
{[%clk 0:02:41.7]} 13. exf6 {[%clk 0:02:49.3]} 13... Nxf6 {[%clk 0:02:43.6]} 14.
O-O {[%clk 0:02:47]} 14... e5 {[%clk 0:02:43.8]} 15. Bb5 {[%clk 0:02:31.9]}
15... exf4 {[%clk 0:02:41.2]} 16. exf4 {[%clk 0:02:33.1]} 16... Bd7 {[%clk
0:02:32.9]} 17. Nf3 {[%clk 0:02:33.8]} 17... Qe3+ {[%clk 0:02:28.9]} 18. Kh1
{[%clk 0:02:34.4]} 18... d4 {[%clk 0:01:50.6]} 19. cxd4 {[%clk 0:02:11.1]} 19...
Nxd4 {[%clk 0:01:42.8]} 20. Bc4+ {[%clk 0:01:58.6]} 20... Kh8 {[%clk 0:01:33.3]}
21. Nxd4 {[%clk 0:01:56.9]} 21... cxd4 {[%clk 0:01:24]} 22. Bf2 {[%clk
0:01:57.1]} 22... Qxf4 {[%clk 0:01:22.5]} 23. Bxd4 {[%clk 0:01:58.2]} 23... Qc7
{[%clk 0:01:01.7]} 24. Bxf6 {[%clk 0:01:49.5]} 24... Rxf6 {[%clk 0:00:56.5]} 25.
Rxf6 {[%clk 0:01:49.1]} 25... gxf6 {[%clk 0:00:58.4]} 26. Qd4 {[%clk 0:01:49.6]}
26... Rf8 {[%clk 0:00:54.2]} 27. Rf1 {[%clk 0:01:50.3]} 27... Qc6 {[%clk
0:00:40.5]} 28. a3 {[%clk 0:01:35.2]} 28... a5 {[%clk 0:00:37.5]} 29. Bd3 {[%clk
0:01:28.2]} 29... Rf7 {[%clk 0:00:24.8]} 30. Qf4 {[%clk 0:01:23.4]} 30... Qc5
{[%clk 0:00:22.2]} 31. h3 {[%clk 0:01:18.5]} 31... Kg7 {[%clk 0:00:20]} 32. Qh4
{[%clk 0:01:12.8]} 32... Qg5 {[%clk 0:00:18.7]} 33. Qxh7+ {[%clk 0:01:11.7]}
33... Kf8 {[%clk 0:00:19.1]} 34. Qh8+ {[%clk 0:01:12.9]} 34... Qg8 {[%clk
0:00:18.3]} 35. Qxg8+ {[%clk 0:01:12.4]} 35... Kxg8 {[%clk 0:00:17.9]} 36. Bc4
{[%clk 0:01:14]} 1-0